[Event "Live Chess"]
[Site "Chess.com"]
[Date "2023.05.21"]
[Round "-"]
[White "Pandreq"]
[Black "elephantgerrald"]
[Result "0-1"]
[WhiteElo "1252"]
[BlackElo "575"]
[TimeControl "300"]
[EndTime "23:30:38 PDT"]
[Termination "elephantgerrald won by checkmate"]

1. d4 {[%clk 0:04:57.9]} 1... d5 {[%clk 0:04:58.1]} 2. c4 {[%clk 0:04:57.2]}
2... dxc4 {[%clk 0:04:56.7]} 3. e4 {[%clk 0:04:55.2]} 3... e5 {[%clk 0:04:54.3]}
4. d5 {[%clk 0:04:53.9]} 4... c6 {[%clk 0:04:52.2]} 5. Bxc4 {[%clk 0:04:51.7]}
5... cxd5 {[%clk 0:04:50.7]} 6. Bxd5 {[%clk 0:04:50.8]} 6... Nc6 {[%clk
0:04:49.5]} 7. Qa4 {[%clk 0:04:47.7]} 7... Bd7 {[%clk 0:04:47.2]} 8. Nc3 {[%clk
0:04:45.7]} 8... Bb4 {[%clk 0:04:40.5]} 9. Bd2 {[%clk 0:04:39.4]} 9... Nge7
{[%clk 0:04:37.9]} 10. Bxc6 {[%clk 0:04:37.9]} 10... Bxc6 {[%clk 0:04:35.7]} 11.
Qxb4 {[%clk 0:04:36.8]} 11... O-O {[%clk 0:04:27.6]} 12. Nf3 {[%clk 0:04:33.3]}
12... a5 {[%clk 0:04:24.8]} 13. Qb3 {[%clk 0:04:27.6]} 13... Bd7 {[%clk
0:04:05.4]} 14. Nxe5 {[%clk 0:04:24.8]} 14... Be6 {[%clk 0:04:02.1]} 15. Qc2
{[%clk 0:04:17.7]} 15... f6 {[%clk 0:03:58.3]} 16. Nf3 {[%clk 0:04:08.9]} 16...
h6 {[%clk 0:03:52.4]} 17. O-O {[%clk 0:04:07.5]} 17... Ng6 {[%clk 0:03:48.2]}
18. e5 {[%clk 0:04:00.7]} 18... Nxe5 {[%clk 0:03:45]} 19. Nxe5 {[%clk
0:03:58.6]} 19... fxe5 {[%clk 0:03:43.4]} 20. Rfe1 {[%clk 0:03:54.2]} 20... Qf6
{[%clk 0:03:35.2]} 21. Rad1 {[%clk 0:03:44.7]} 21... Qxf2+ {[%clk 0:03:28.5]}
22. Kh1 {[%clk 0:03:39.4]} 22... b5 {[%clk 0:03:24]} 23. Re2 {[%clk 0:03:28.7]}
23... Qf1+ {[%clk 0:03:20.5]} 24. Rxf1 {[%clk 0:03:24.2]} 24... Rxf1# {[%clk
0:03:18.7]} 0-1

[Event "Live Chess"]
[Site "Chess.com"]
[Date "2023.05.21"]
[Round "-"]
[White "raminguy"]
[Black "LutherSullivan"]
[Result "1-0"]
[WhiteElo "1936"]
[BlackElo "2193"]
[TimeControl "300"]
[EndTime "23:31:02 PDT"]
[Termination "raminguy won on time"]

1. d4 {[%clk 0:04:59.2]} 1... Nf6 {[%clk 0:04:58.5]} 2. Nc3 {[%clk 0:04:58.3]}
2... d5 {[%clk 0:04:56.9]} 3. Bf4 {[%clk 0:04:56.4]} 3... c6 {[%clk 0:04:55.2]}
4. e3 {[%clk 0:04:55.1]} 4... Bf5 {[%clk 0:04:53.8]} 5. Nf3 {[%clk 0:04:54.4]}
5... e6 {[%clk 0:04:52.7]} 6. Ne5 {[%clk 0:04:54]} 6... Nbd7 {[%clk 0:04:50.9]}
7. g4 {[%clk 0:04:53.6]} 7... Bg6 {[%clk 0:04:48.5]} 8. h4 {[%clk 0:04:52.1]}
8... h5 {[%clk 0:04:46.1]} 9. Nxg6 {[%clk 0:04:51]} 9... fxg6 {[%clk 0:04:44.6]}
10. Qd3 {[%clk 0:04:49.4]} 10... Kf7 {[%clk 0:04:42]} 11. g5 {[%clk 0:04:48.2]}
11... Ng8 {[%clk 0:04:39.6]} 12. Bh3 {[%clk 0:04:46.3]} 12... Ne7 {[%clk
0:04:36.8]} 13. O-O-O {[%clk 0:04:41.5]} 13... Nf5 {[%clk 0:04:31.8]} 14. e4
{[%clk 0:04:39]} 14... dxe4 {[%clk 0:04:26.6]} 15. Nxe4 {[%clk 0:04:38]} 15...
Nb6 {[%clk 0:04:19.3]} 16. Ng3 {[%clk 0:04:35.9]} 16... Qd7 {[%clk 0:04:10.9]}
17. Rhe1 {[%clk 0:04:33.7]} 17... Nd5 {[%clk 0:04:07.3]} 18. Bd2 {[%clk
0:04:24.2]} 18... Bd6 {[%clk 0:03:58]} 19. Nxf5 {[%clk 0:04:22]} 19... exf5
{[%clk 0:03:50.4]} 20. Qb3 {[%clk 0:04:07.7]} 20... b5 {[%clk 0:03:42.7]} 21.
Bg2 {[%clk 0:04:04.6]} 21... Bc7 {[%clk 0:03:34.4]} 22. c4 {[%clk 0:04:02.8]}
22... bxc4 {[%clk 0:03:32.3]} 23. Qxc4 {[%clk 0:04:01.7]} 23... Rhe8 {[%clk
0:03:28.3]} 24. Kb1 {[%clk 0:03:41.8]} 24... Kg8 {[%clk 0:02:57.7]} 25. Rc1
{[%clk 0:03:39.9]} 25... Rxe1 {[%clk 0:02:55.2]} 26. Bxe1 {[%clk 0:03:38.3]}
26... Re8 {[%clk 0:02:33.6]} 27. Bd2 {[%clk 0:03:32.5]} 27... Kh7 {[%clk
0:01:10.4]} 28. Bxd5 {[%clk 0:03:30.6]} 28... cxd5 {[%clk 0:01:00.9]} 29. Qxc7
{[%clk 0:03:28.9]} 29... Qb5 {[%clk 0:01:00.2]} 30. Qc6 {[%clk 0:02:37.4]} 30...
Qd3+ {[%clk 0:00:31.1]} 31. Qc2 {[%clk 0:02:35.8]} 31... Qxd4 {[%clk 0:00:23.5]}
32. Be3 {[%clk 0:02:34.7]} 32... Qxh4 {[%clk 0:00:20.2]} 33. Bxa7 {[%clk
0:02:22.5]} 33... d4 {[%clk 0:00:18.8]} 34. Rd1 {[%clk 0:02:19.7]} 34... Rd8
{[%clk 0:00:14.2]} 35. Qc7 {[%clk 0:02:10.6]} 35... Qe4+ {[%clk 0:00:12.1]} 36.
Ka1 {[%clk 0:02:08.2]} 36... Qe2 {[%clk 0:00:10.9]} 37. Rb1 {[%clk 0:02:01.6]}
37... Rd5 {[%clk 0:00:10.1]} 38. Qf7 {[%clk 0:01:53.6]} 38... Qe4 {[%clk
0:00:07.3]} 39. f4 {[%clk 0:01:44.6]} 39... d3 {[%clk 0:00:06.3]} 40. Be3 {[%clk
0:01:09.6]} 40... Qxe3 {[%clk 0:00:03.9]} 41. Qxd5 {[%clk 0:01:08]} 41... d2
{[%clk 0:00:03.1]} 42. a4 {[%clk 0:00:59]} 42... Qxf4 {[%clk 0:00:01.9]} 43. b3
{[%clk 0:00:54.2]} 43... Qe3 {[%clk 0:00:00.2]} 44. a5 {[%clk 0:00:50.7]} 1-0

[Event "Live Chess"]
[Site "Chess.com"]
[Date "2023.05.21"]
[Round "-"]
[White "jbooth"]
[Black "Supertromp"]
[Result "0-1"]
[WhiteElo "1678"]
[BlackElo "2143"]
[TimeControl "300"]
[EndTime "23:31:03 PDT"]
[Termination "Supertromp won by resignation"]

1. e4 {[%clk 0:04:56.9]} 1... c5 {[%clk 0:04:58.9]} 2. Nf3 {[%clk 0:04:54]} 2...
d6 {[%clk 0:04:58]} 3. c3 {[%clk 0:04:53.3]} 3... Nf6 {[%clk 0:04:56.4]} 4. Bd3
{[%clk 0:04:51.2]} 4... g6 {[%clk 0:04:39]} 5. Bc2 {[%clk 0:04:50]} 5... Bg7
{[%clk 0:04:33.5]} 6. O-O {[%clk 0:04:48.3]} 6... O-O {[%clk 0:04:31.4]} 7. h3
{[%clk 0:04:47.7]} 7... d5 {[%clk 0:04:27.1]} 8. exd5 {[%clk 0:04:42.6]} 8...
Qxd5 {[%clk 0:04:25.2]} 9. Re1 {[%clk 0:04:41.9]} 9... Nc6 {[%clk 0:04:22.6]}
10. d4 {[%clk 0:04:39.1]} 10... cxd4 {[%clk 0:04:16.4]} 11. cxd4 {[%clk
0:04:37.5]} 11... Rd8 {[%clk 0:04:03.4]} 12. Be3 {[%clk 0:04:31.4]} 12... Qh5
{[%clk 0:03:39.2]} 13. Nc3 {[%clk 0:04:23.1]} 13... Be6 {[%clk 0:03:36.6]} 14.
Qe2 {[%clk 0:04:14.2]} 14... Nd5 {[%clk 0:03:28.1]} 15. Rad1 {[%clk 0:04:02]}
15... Nxc3 {[%clk 0:03:05]} 16. bxc3 {[%clk 0:03:56.9]} 16... Bxa2 {[%clk
0:03:04.6]} 17. Bxg6 {[%clk 0:03:39]} 17... hxg6 {[%clk 0:02:52]} 18. Qxa2
{[%clk 0:03:37.5]} 18... e5 {[%clk 0:02:48.3]} 19. d5 {[%clk 0:03:28.9]} 19...
Ne7 {[%clk 0:02:45.6]} 20. Bc5 {[%clk 0:03:15.3]} 20... Nf5 {[%clk 0:02:40.6]}
21. Nxe5 {[%clk 0:02:57.1]} 21... Bxe5 {[%clk 0:02:38.8]} 22. Rxe5 {[%clk
0:02:54.3]} 22... Qxd1+ {[%clk 0:02:37.7]} 23. Kh2 {[%clk 0:02:50]} 23... Rac8
{[%clk 0:02:35.7]} 24. Qxa7 {[%clk 0:02:41]} 24... Rxd5 {[%clk 0:02:32.5]} 25.
Rxd5 {[%clk 0:02:37.1]} 25... Qxd5 {[%clk 0:02:30.9]} 0-1

[Event "Live Chess"]
[Site "Chess.com"]
[Date "2023.05.21"]
[Round "-"]
[White "Nazarenko_vital"]
[Black "BillythekidFellowes"]
[Result "0-1"]
[WhiteElo "1629"]
[BlackElo "2020"]
[TimeControl "300"]
[EndTime "23:31:08 PDT"]
[Termination "BillythekidFellowes won on time"]

1. e4 {[%clk 0:04:55.2]} 1... e6 {[%clk 0:04:59.9]} 2. d4 {[%clk 0:04:54]} 2...
d5 {[%clk 0:04:58.9]} 3. Nd2 {[%clk 0:04:53]} 3... dxe4 {[%clk 0:04:57.4]} 4.
Nxe4 {[%clk 0:04:52.2]} 4... Nc6 {[%clk 0:04:55.2]} 5. Nf3 {[%clk 0:04:46.5]}
5... Nf6 {[%clk 0:04:52]} 6. Ng3 {[%clk 0:04:45.1]} 6... Bd6 {[%clk 0:04:50.2]}
7. Bb5 {[%clk 0:04:42.8]} 7... O-O {[%clk 0:04:48.8]} 8. Bg5 {[%clk 0:04:36.4]}
8... h6 {[%clk 0:04:32.3]} 9. Be3 {[%clk 0:04:18.8]} 9... a6 {[%clk 0:03:36.6]}
10. Bxc6 {[%clk 0:04:15.3]} 10... bxc6 {[%clk 0:03:29.7]} 11. Ne5 {[%clk
0:04:14]} 11... Bxe5 {[%clk 0:03:27.4]} 12. dxe5 {[%clk 0:04:12.7]} 12... Nd5
{[%clk 0:03:25.2]} 13. Bc5 {[%clk 0:04:00.5]} 13... Re8 {[%clk 0:03:22.7]} 14.
O-O {[%clk 0:03:59.4]} 14... Qg5 {[%clk 0:03:20.3]} 15. Re1 {[%clk 0:03:31.6]}
15... a5 {[%clk 0:02:59.8]} 16. c4 {[%clk 0:03:26.4]} 16... Nf4 {[%clk
0:02:44.6]} 17. Qf3 {[%clk 0:03:05.4]} 17... Ng6 {[%clk 0:02:17.8]} 18. Ne4
{[%clk 0:02:54.2]} 18... Qxe5 {[%clk 0:02:10.3]} 19. Nd6 {[%clk 0:02:42.1]}
19... Qxc5 {[%clk 0:02:07.8]} 20. Nxe8 {[%clk 0:02:40.7]} 20... Ba6 {[%clk
0:02:05.7]} 21. Nxc7 {[%clk 0:02:35.4]} 21... Ra7 {[%clk 0:02:03.1]} 22. Nxa6
{[%clk 0:02:10]} 22... Rxa6 {[%clk 0:02:03]} 23. b3 {[%clk 0:02:07.1]} 23... a4
{[%clk 0:01:58.8]} 24. Qd1 {[%clk 0:01:48.2]} 24... axb3 {[%clk 0:01:32.3]} 25.
axb3 {[%clk 0:01:36.8]} 25... Rxa1 {[%clk 0:01:30.4]} 26. Qxa1 {[%clk 0:01:24]}
26... Qb4 {[%clk 0:01:30.3]} 27. Qb1 {[%clk 0:01:13.2]} 27... Nf4 {[%clk
0:01:16]} 28. g3 {[%clk 0:00:59.5]} 28... Nh3+ {[%clk 0:01:08]} 29. Kg2 {[%clk
0:00:56.6]} 29... Ng5 {[%clk 0:01:07.9]} 30. Rd1 {[%clk 0:00:54]} 30... g6
{[%clk 0:01:02.4]} 31. Rd8+ {[%clk 0:00:39.8]} 31... Kg7 {[%clk 0:00:41.8]} 32.
Qb2+ {[%clk 0:00:38.6]} 32... f6 {[%clk 0:00:39.7]} 33. Rd7+ {[%clk 0:00:36.5]}
33... Nf7 {[%clk 0:00:37.7]} 34. h4 {[%clk 0:00:31.8]} 34... Qb8 {[%clk
0:00:32.8]} 35. b4 {[%clk 0:00:22.8]} 35... Qc8 {[%clk 0:00:29.3]} 36. Qd2
{[%clk 0:00:18.4]} 36... Kf8 {[%clk 0:00:25.4]} 37. Ra7 {[%clk 0:00:13.5]} 37...
c5 {[%clk 0:00:21.7]} 38. b5 {[%clk 0:00:07.6]} 38... g5 {[%clk 0:00:13.5]} 39.
hxg5 {[%clk 0:00:05.6]} 39... hxg5 {[%clk 0:00:09.5]} 40. Qd7 {[%clk 0:00:04.1]}
40... Qxd7 {[%clk 0:00:08.6]} 41. Rxd7 {[%clk 0:00:02.9]} 41... Ne5 {[%clk
0:00:08.5]} 42. Rc7 {[%clk 0:00:01]} 42... Nxc4 {[%clk 0:00:07.4]} 0-1

[Event "Live Chess"]
[Site "Chess.com"]
[Date "2023.05.21"]
[Round "-"]
[White "HoarseyHorsey"]
[Black "MaximKris"]
[Result "1-0"]
[WhiteElo "1431"]
[BlackElo "1836"]
[TimeControl "300"]
[EndTime "23:31:26 PDT"]
[Termination "HoarseyHorsey won by checkmate"]

1. d4 {[%clk 0:04:58]} 1... d5 {[%clk 0:04:58.5]} 2. c4 {[%clk 0:04:57.2]} 2...
e6 {[%clk 0:04:57.2]} 3. Nc3 {[%clk 0:04:56]} 3... Nf6 {[%clk 0:04:55.7]} 4.
cxd5 {[%clk 0:04:55.3]} 4... exd5 {[%clk 0:04:55.6]} 5. Bg5 {[%clk 0:04:53.8]}
5... Be6 {[%clk 0:04:53.2]} 6. e3 {[%clk 0:04:53.1]} 6... h6 {[%clk 0:04:52]} 7.
Bh4 {[%clk 0:04:51.8]} 7... Nc6 {[%clk 0:04:50.9]} 8. Nf3 {[%clk 0:04:51.1]}
8... g5 {[%clk 0:04:49.6]} 9. Bg3 {[%clk 0:04:49.9]} 9... Bd6 {[%clk 0:04:49.1]}
10. Bd3 {[%clk 0:04:47.4]} 10... Qd7 {[%clk 0:04:45.6]} 11. Bb5 {[%clk
0:04:38.1]} 11... a6 {[%clk 0:04:43.2]} 12. Ba4 {[%clk 0:04:36.8]} 12... b5
{[%clk 0:04:40.8]} 13. Bc2 {[%clk 0:04:35.8]} 13... O-O-O {[%clk 0:04:36]} 14.
O-O {[%clk 0:04:17.2]} 14... h5 {[%clk 0:04:29.8]} 15. Bxd6 {[%clk 0:04:15.2]}
15... Qxd6 {[%clk 0:04:27.7]} 16. Bd3 {[%clk 0:04:02.9]} 16... g4 {[%clk
0:04:23.2]} 17. Nh4 {[%clk 0:04:01.1]} 17... Rhg8 {[%clk 0:04:19.6]} 18. Bxb5
{[%clk 0:03:51.2]} 18... axb5 {[%clk 0:04:18.3]} 19. Nxb5 {[%clk 0:03:50.1]}
19... Qe7 {[%clk 0:04:16.7]} 20. Qa4 {[%clk 0:03:46.6]} 20... Kd7 {[%clk
0:04:10.7]} 21. Rac1 {[%clk 0:03:39.5]} 21... Ne4 {[%clk 0:04:09.2]} 22. Na7
{[%clk 0:03:31.4]} 22... Ke8 {[%clk 0:04:03.3]} 23. Nxc6 {[%clk 0:03:26.6]}
23... Qd7 {[%clk 0:04:01.9]} 24. Qa6 {[%clk 0:03:18.6]} 24... Rc8 {[%clk
0:03:16.6]} 25. Ne5 {[%clk 0:03:11.6]} 25... Qe7 {[%clk 0:02:02.4]} 26. g3
{[%clk 0:02:59.7]} 26... Ng5 {[%clk 0:01:38.5]} 27. Rc6 {[%clk 0:02:25.4]} 27...
Nf3+ {[%clk 0:01:32]} 28. Nhxf3 {[%clk 0:02:23.3]} 28... gxf3 {[%clk 0:01:31.9]}
29. Rfc1 {[%clk 0:02:17]} 29... h4 {[%clk 0:01:24.7]} 30. Nxf3 {[%clk
0:01:50.7]} 30... hxg3 {[%clk 0:01:13.5]} 31. hxg3 {[%clk 0:01:50.6]} 31... Rh8
{[%clk 0:01:06.9]} 32. Qb7 {[%clk 0:01:28.4]} 32... Qd7 {[%clk 0:00:35.6]} 33.
Rxc7 {[%clk 0:01:20.2]} 33... Rxc7 {[%clk 0:00:32.3]} 34. Rxc7 {[%clk
0:01:20.1]} 34... Qa4 {[%clk 0:00:28.2]} 35. Qb8+ {[%clk 0:01:10.5]} 35... Bc8
{[%clk 0:00:28.1]} 36. Qxc8# {[%clk 0:01:06.1]} 1-0

[Event "Live Chess"]
[Site "Chess.com"]
[Date "2023.05.21"]
[Round "-"]
[White "MarkLim1"]
[Black "CroasArRheun"]
[Result "0-1"]
[WhiteElo "1657"]
[BlackElo "1846"]
[TimeControl "300"]
[EndTime "23:31:44 PDT"]
[Termination "CroasArRheun won on time"]

1. d4 {[%clk 0:04:58.8]} 1... d5 {[%clk 0:04:58.7]} 2. Nf3 {[%clk 0:04:58.1]}
2... Nf6 {[%clk 0:04:57.4]} 3. c4 {[%clk 0:04:57.4]} 3... e6 {[%clk 0:04:56.5]}
4. cxd5 {[%clk 0:04:56.7]} 4... exd5 {[%clk 0:04:55.5]} 5. Nc3 {[%clk
0:04:56.6]} 5... c6 {[%clk 0:04:53.5]} 6. Qc2 {[%clk 0:04:56]} 6... Be7 {[%clk
0:04:52.4]} 7. Bg5 {[%clk 0:04:55.3]} 7... Nbd7 {[%clk 0:04:51.4]} 8. e3 {[%clk
0:04:53.8]} 8... h6 {[%clk 0:04:45.6]} 9. Bh4 {[%clk 0:04:52.3]} 9... O-O {[%clk
0:04:43.7]} 10. Bd3 {[%clk 0:04:51.1]} 10... Nb6 {[%clk 0:04:42]} 11. O-O {[%clk
0:04:49]} 11... Nh5 {[%clk 0:04:39.9]} 12. Bxe7 {[%clk 0:04:47.4]} 12... Qxe7
{[%clk 0:04:39.8]} 13. Rab1 {[%clk 0:04:46.3]} 13... Bg4 {[%clk 0:04:30.1]} 14.
Ne5 {[%clk 0:04:44.7]} 14... Be6 {[%clk 0:04:25.1]} 15. b4 {[%clk 0:04:43.6]}
15... Nd7 {[%clk 0:04:11.7]} 16. f4 {[%clk 0:04:28.9]} 16... Nxe5 {[%clk
0:04:00]} 17. dxe5 {[%clk 0:04:22.9]} 17... Bg4 {[%clk 0:03:31.9]} 18. h3 {[%clk
0:04:19.3]} 18... Bd7 {[%clk 0:03:09.2]} 19. g4 {[%clk 0:04:09.4]} 19... Qh4
{[%clk 0:02:35]} 20. Qg2 {[%clk 0:03:57.3]} 20... g5 {[%clk 0:01:28.4]} 21. gxh5
{[%clk 0:03:52.2]} 21... Bxh3 {[%clk 0:01:26.7]} 22. Qh2 {[%clk 0:03:40.1]}
22... Qg4+ {[%clk 0:01:15.3]} 23. Kh1 {[%clk 0:03:35.6]} 23... Bxf1 {[%clk
0:00:57]} 24. Rxf1 {[%clk 0:03:32.5]} 24... Rad8 {[%clk 0:00:50.7]} 25. Ne2
{[%clk 0:02:53]} 25... Kh8 {[%clk 0:00:43.6]} 26. Nd4 {[%clk 0:02:41.7]} 26...
gxf4 {[%clk 0:00:30.3]} 27. exf4 {[%clk 0:02:35.9]} 27... Rg8 {[%clk 0:00:28.7]}
28. Be2 {[%clk 0:01:36.5]} 28... Qg3 {[%clk 0:00:24.4]} 29. Rg1 {[%clk
0:01:21.3]} 29... Qxh2+ {[%clk 0:00:17.3]} 30. Kxh2 {[%clk 0:01:19.7]} 30...
Rxg1 {[%clk 0:00:17.2]} 31. Kxg1 {[%clk 0:01:18.9]} 31... Rg8+ {[%clk
0:00:17.1]} 32. Kf2 {[%clk 0:01:17.8]} 32... Kh7 {[%clk 0:00:16]} 33. Nf5 {[%clk
0:01:13.1]} 33... Rf8 {[%clk 0:00:14.9]} 34. Nd6 {[%clk 0:01:10.2]} 34... f6
{[%clk 0:00:14]} 35. e6 {[%clk 0:01:08.8]} 35... Rd8 {[%clk 0:00:12.3]} 36. Nxb7
{[%clk 0:01:06.1]} 36... Re8 {[%clk 0:00:11.7]} 37. f5 {[%clk 0:01:05.2]} 37...
Kg7 {[%clk 0:00:10.8]} 38. Ke3 {[%clk 0:01:00]} 38... Re7 {[%clk 0:00:10.7]} 39.
Nc5 {[%clk 0:00:57.4]} 39... Kf8 {[%clk 0:00:09]} 40. Kf4 {[%clk 0:00:53.2]}
40... Ke8 {[%clk 0:00:08.9]} 41. a4 {[%clk 0:00:42.5]} 41... Kd8 {[%clk
0:00:08.8]} 42. Nb3 {[%clk 0:00:35.3]} 42... Kc7 {[%clk 0:00:08.7]} 43. Nd4
{[%clk 0:00:33.3]} 43... Kd6 {[%clk 0:00:08.6]} 44. Bf3 {[%clk 0:00:26.8]} 44...
c5 {[%clk 0:00:08.5]} 45. bxc5+ {[%clk 0:00:25.5]} 45... Kxc5 {[%clk 0:00:08.4]}
46. Nb5 {[%clk 0:00:20.3]} 46... d4 {[%clk 0:00:07]} 47. Be2 {[%clk 0:00:14.4]}
47... a6 {[%clk 0:00:06.9]} 48. Na3 {[%clk 0:00:10.9]} 48... a5 {[%clk
0:00:06.8]} 49. Ke4 {[%clk 0:00:09.4]} 49... Kb4 {[%clk 0:00:06.7]} 50. Nc2+
{[%clk 0:00:07.4]} 50... Kxa4 {[%clk 0:00:06.2]} 51. Nxd4 {[%clk 0:00:06.7]}
51... Kb4 {[%clk 0:00:05.3]} 52. Nc6+ {[%clk 0:00:05.6]} 52... Kc5 {[%clk
0:00:05.2]} 53. Nxe7 {[%clk 0:00:04.8]} 53... Kd6 {[%clk 0:00:04.9]} 54. Ng6
{[%clk 0:00:03.9]} 54... a4 {[%clk 0:00:04.8]} 55. e7 {[%clk 0:00:02.4]} 55...
Kd7 {[%clk 0:00:03.9]} 56. Bc4 {[%clk 0:00:01.2]} 56... Ke8 {[%clk 0:00:03.8]}
57. Ba2 {[%clk 0:00:00.6]} 57... a3 {[%clk 0:00:02.3]} 0-1

[Event "Live Chess"]
[Site "Chess.com"]
[Date "2023.05.21"]
[Round "-"]
[White "Crowded_House"]
[Black "JohanKjeldahl"]
[Result "0-1"]
[WhiteElo "1685"]
[BlackElo "1880"]
[TimeControl "300"]
[EndTime "23:31:45 PDT"]
[Termination "JohanKjeldahl won by resignation"]

1. d4 {[%clk 0:04:57.7]} 1... Nf6 {[%clk 0:04:57.4]} 2. Bg5 {[%clk 0:04:57]}
2... e6 {[%clk 0:04:55.4]} 3. e3 {[%clk 0:04:54.6]} 3... c5 {[%clk 0:04:54]} 4.
c3 {[%clk 0:04:51.5]} 4... d5 {[%clk 0:04:50.9]} 5. Nf3 {[%clk 0:04:47]} 5...
Nc6 {[%clk 0:04:49.4]} 6. Bd3 {[%clk 0:04:39.9]} 6... h6 {[%clk 0:04:46.9]} 7.
Bh4 {[%clk 0:04:38.4]} 7... b6 {[%clk 0:04:40.9]} 8. Nbd2 {[%clk 0:04:36]} 8...
Be7 {[%clk 0:04:39.7]} 9. O-O {[%clk 0:04:33.4]} 9... O-O {[%clk 0:04:38.1]} 10.
Qb1 {[%clk 0:04:30.9]} 10... Bb7 {[%clk 0:04:33.5]} 11. Re1 {[%clk 0:04:29.5]}
11... Rc8 {[%clk 0:04:26.9]} 12. Bg3 {[%clk 0:04:25.8]} 12... Nh5 {[%clk
0:04:15.2]} 13. Ne5 {[%clk 0:04:13.6]} 13... Nxg3 {[%clk 0:04:12.4]} 14. Nxc6
{[%clk 0:04:11.3]} 14... Bxc6 {[%clk 0:04:05.8]} 15. hxg3 {[%clk 0:04:10.3]}
15... Bf6 {[%clk 0:04:00.5]} 16. dxc5 {[%clk 0:04:01.3]} 16... bxc5 {[%clk
0:03:56.3]} 17. Nf3 {[%clk 0:03:53.2]} 17... e5 {[%clk 0:03:52.8]} 18. Ba6
{[%clk 0:03:47.4]} 18... Rb8 {[%clk 0:03:46.9]} 19. Be2 {[%clk 0:03:39.7]} 19...
e4 {[%clk 0:03:44.7]} 20. Nd2 {[%clk 0:03:34.5]} 20... Qb6 {[%clk 0:03:39.5]}
21. Qc2 {[%clk 0:03:17.7]} 21... Qxb2 {[%clk 0:03:35.8]} 22. Qxb2 {[%clk
0:03:03.5]} 22... Rxb2 {[%clk 0:03:34]} 23. Nb3 {[%clk 0:02:49.9]} 23... Bxc3
{[%clk 0:03:29.8]} 24. Rec1 {[%clk 0:02:44.5]} 24... d4 {[%clk 0:03:21.3]} 25.
exd4 {[%clk 0:02:39.5]} 25... cxd4 {[%clk 0:03:18.9]} 26. Rab1 {[%clk
0:02:30.2]} 26... Rxe2 {[%clk 0:03:14.4]} 27. Nxd4 {[%clk 0:02:26]} 27... Bxd4
{[%clk 0:03:11]} 28. Rxc6 {[%clk 0:02:24.4]} 28... Rxf2 {[%clk 0:03:08.4]} 29.
Kh1 {[%clk 0:02:21.4]} 29... Rxa2 {[%clk 0:02:58]} 30. Rc4 {[%clk 0:02:19.8]}
30... Ra1 {[%clk 0:02:50.8]} 31. Rxa1 {[%clk 0:02:15.5]} 31... Bxa1 {[%clk
0:02:49.2]} 32. Rxe4 {[%clk 0:02:15.3]} 32... Rd8 {[%clk 0:02:43.6]} 33. Ra4
{[%clk 0:02:13.2]} 33... Bd4 {[%clk 0:02:39.6]} 34. Ra3 {[%clk 0:02:07]} 34...
Rd6 {[%clk 0:02:34.1]} 35. Kh2 {[%clk 0:02:06.2]} 35... Rd5 {[%clk 0:02:30.1]}
0-1

[Event "Live Chess"]
[Site "Chess.com"]
[Date "2023.05.21"]
[Round "-"]
[White "Davidagye"]
[Black "Singapourfeuj"]
[Result "0-1"]
[WhiteElo "1671"]
[BlackElo "2213"]
[TimeControl "300"]
[EndTime "23:32:08 PDT"]
[Termination "Singapourfeuj won by resignation"]

1. b4 {[%clk 0:04:58]} 1... a5 {[%clk 0:04:58.1]} 2. b5 {[%clk 0:04:56]} 2... c6
{[%clk 0:04:57.3]} 3. c4 {[%clk 0:04:53.5]} 3... d5 {[%clk 0:04:56.3]} 4. e3
{[%clk 0:04:52.3]} 4... dxc4 {[%clk 0:04:54.9]} 5. Bxc4 {[%clk 0:04:51.2]} 5...
cxb5 {[%clk 0:04:54.2]} 6. Bxb5+ {[%clk 0:04:50.2]} 6... Nc6 {[%clk 0:04:53.6]}
7. Qc2 {[%clk 0:04:44.9]} 7... Bd7 {[%clk 0:04:51.6]} 8. Nf3 {[%clk 0:04:42.9]}
8... Nf6 {[%clk 0:04:49.7]} 9. O-O {[%clk 0:04:33.4]} 9... Rc8 {[%clk 0:04:48]}
10. Qa4 {[%clk 0:04:29.2]} 10... e6 {[%clk 0:04:45.4]} 11. Ba3 {[%clk
0:04:26.3]} 11... Bxa3 {[%clk 0:04:43.8]} 12. Qxa3 {[%clk 0:04:18.2]} 12... Qe7
{[%clk 0:04:41.9]} 13. Bxc6 {[%clk 0:04:10.5]} 13... Bxc6 {[%clk 0:04:38.8]} 14.
Qxa5 {[%clk 0:04:00.7]} 14... Bxf3 {[%clk 0:04:37.4]} 15. gxf3 {[%clk
0:03:59.5]} 15... O-O {[%clk 0:04:36.6]} 16. Nc3 {[%clk 0:03:57.8]} 16... Rc5
{[%clk 0:04:35.1]} 17. Qa4 {[%clk 0:03:51.4]} 17... Rh5 {[%clk 0:04:27.2]} 18.
Kh1 {[%clk 0:03:41.1]} 18... Qd6 {[%clk 0:04:23.6]} 19. f4 {[%clk 0:03:33.6]}
19... Qxd2 {[%clk 0:04:21.6]} 20. Ne4 {[%clk 0:03:29.7]} 20... Nxe4 {[%clk
0:04:16.4]} 21. Qxe4 {[%clk 0:03:27.7]} 21... b5 {[%clk 0:04:08.3]} 22. Rab1
{[%clk 0:03:23.7]} 22... Qxa2 {[%clk 0:04:05.6]} 23. Rxb5 {[%clk 0:03:21.2]}
23... Rxb5 {[%clk 0:04:04]} 0-1

[Event "Live Chess"]
[Site "Chess.com"]
[Date "2023.05.21"]
[Round "-"]
[White "f4nomore"]
[Black "Biranidun"]
[Result "0-1"]
[WhiteElo "1422"]
[BlackElo "2560"]
[TimeControl "300"]
[EndTime "23:32:22 PDT"]
[Termination "Biranidun won by checkmate"]

1. d4 {[%clk 0:04:56.2]} 1... Nf6 {[%clk 0:04:59.1]} 2. Bg5 {[%clk 0:04:53.5]}
2... c5 {[%clk 0:04:57.9]} 3. Bxf6 {[%clk 0:04:50.7]} 3... gxf6 {[%clk
0:04:57.8]} 4. dxc5 {[%clk 0:04:49.3]} 4... e6 {[%clk 0:04:52.8]} 5. b4 {[%clk
0:04:46.6]} 5... a5 {[%clk 0:04:51.6]} 6. c3 {[%clk 0:04:44.7]} 6... b6 {[%clk
0:04:49.2]} 7. cxb6 {[%clk 0:04:40.7]} 7... axb4 {[%clk 0:04:47.8]} 8. e3 {[%clk
0:04:27]} 8... Qxb6 {[%clk 0:04:45.5]} 9. Bd3 {[%clk 0:04:19.6]} 9... bxc3
{[%clk 0:04:43.9]} 10. Nxc3 {[%clk 0:04:16.5]} 10... Bb4 {[%clk 0:04:41.8]} 11.
Qc2 {[%clk 0:04:09.4]} 11... Rg8 {[%clk 0:04:35.7]} 12. Nf3 {[%clk 0:03:57.5]}
12... Ra3 {[%clk 0:04:32.9]} 13. O-O {[%clk 0:03:40.8]} 13... Rxc3 {[%clk
0:04:31.8]} 14. Qb2 {[%clk 0:03:26.6]} 14... Rxd3 {[%clk 0:04:30.1]} 15. Rab1
{[%clk 0:03:12.9]} 15... Nc6 {[%clk 0:04:29.1]} 16. Nd4 {[%clk 0:03:07.2]} 16...
Nxd4 {[%clk 0:04:26.6]} 17. exd4 {[%clk 0:03:04.7]} 17... Bb7 {[%clk 0:04:25.1]}
18. f3 {[%clk 0:03:00.1]} 18... Qxd4+ {[%clk 0:04:16.2]} 19. Qxd4 {[%clk
0:02:51.8]} 19... Rxd4 {[%clk 0:04:16.1]} 20. a3 {[%clk 0:02:47.7]} 20... Rd2
{[%clk 0:04:15]} 21. Rf2 {[%clk 0:02:40.7]} 21... Bc5 {[%clk 0:04:13.5]} 22.
Rxb7 {[%clk 0:02:30.1]} 22... Rd1# {[%clk 0:04:10.1]} 0-1